Cogmind - Beta 10.2 @@@ ROGUE MODE // 2020.11.14 @ 01:18:50 Player: Moshi Result: Destroyed by D-53 Grenadier with Mini Grenade Launcher Performance ------------- Evolutions (0) 0 Regions Visited (2) 400 Robots Destroyed (9) 45 Value Destroyed (201) 201 Prototype IDs (0) 0 Alien Tech Used (0) 0 Bonus (0) 0 TOTAL SCORE: 646 Bonus ------- None Cogmind --------- Core Integrity 0/250 Matter 252/300 Energy 100/100 System Corruption 0% Temperature Cool (0) Movement Walking (120) Location -10/Mines Parts ------- > --- POWER (1) -------- (None) > --- PROPULSION (2) --- Aluminum Leg Aluminum Leg > --- UTILITY (2) ------ Small Storage Unit Sensor Array > --- WEAPON (2) ------- (None) > --- INVENTORY (6) ---- Ion Engine Light Ion Engine Signal Interpreter Peak State ------------ > --- POWER ------------ Light Ion Engine > --- PROPULSION ------- Aluminum Leg Aluminum Leg > --- UTILITY ---------- Small Storage Unit Sensor Array > --- WEAPON ----------- EM Pulse Gun Light Assault Rifle > --- INVENTORY -------- Light Ion Engine Light Treads Light Treads Assault Rifle Grenade Launcher [Rating: 7] Favorites ----------- Power Light Ion Engine Engine Light Ion Engine Propulsion Aluminum Leg Leg Aluminum Leg Utility Small Storage Unit Device Sensor Array Storage Small Storage Unit Weapon EM Pulse Gun Energy Gun EM Pulse Gun Ballistic Gun Light Assault Rifle Launcher Grenade Launcher Build | -11 -10 -10 ------- Run | Scr Mat Min Slots Evolved . | . . . Power . | . . . Propulsion . | . . . Utility . | . . . Weapon . | . . . Parts Attached 16 | 6 4 6 Power 3 | 1 1 1 Engine 3 | 1 1 1 Core . | . . . Reactor . | . . . Propulsion 4 | 2 . 2 Treads . | . . . Leg 4 | 2 . 2 Wheel . | . . . Hover . | . . . Flight . | . . . Utility 2 | 1 1 . Device 1 | . 1 . Storage 1 | 1 . . Processor . | . . . Hackware . | . . . Protection . | . . . Artifact . | . . . Weapon 7 | 2 2 3 Energy Gun 2 | 1 1 . Energy Cannon . | . . . Ballistic Gun 4 | 1 1 2 Ballistic Cannon . | . . . Launcher 1 | . . 1 Special Weapon . | . . . Impact Weapon . | . . . Slashing Weapon . | . . . Piercing Weapon . | . . . Special Melee Weapon . | . . . Unidentified Prototypes . | . . . Parts Lost 5 | . . 5 Power 1 | . . 1 Propulsion 2 | . . 2 Utility . | . . . Weapon 2 | . . 2 Highest Loss Streak 5 | . . 5 Average Slot Usage (%) 93 | . 92 95 Engine 13 | . 14 12 Leg 28 | . 28 28 Device 9 | . 8 14 Storage 14 | . 14 14 Energy Gun 10 | . 12 3 Ballistic Gun 15 | . 14 19 Naked Turns . | . . . Heaviest Build 12 | 10 12 12 Greatest Support 20 | 20 20 20 Greatest Overweight (x) 2 | 2 . . Average Overweight (x) . | . . . Largest Inventory Capacity 6 | 6 6 6 Average Capacity 5 | 5 6 6 Most Carried 6 | 4 6 6 Average Carried 4 | 2 4 5 Final Capacity 6 | 6 6 6 Final Carried 5 | 4 5 3 Class Distribution -------------------- 100% | Mutant Dominant Class ---------------- Mutant | -10/Materials Mutant | -10/Mines Resources | -11 -10 -10 ----------- Run | Scr Mat Min Matter Collected 364 | 206 107 51 Remotely . | . . . Salvage Created 373 | . 319 54 Parts 12 | . 7 5 Haulers Intercepted . | . . . Recyclers Shooed . | . . . Parts Field Recycled . | . . . Retrieved Matter . | . . . Parts Self-Destructed . | . . . Prevented . | . . . Kills | -11 -10 -10 ------- Run | Scr Mat Min Combat Hostiles Destroyed 10 | . 4 6 Guns 7 | . 4 3 AOE 3 | . . 3 Classes Destroyed 5 | . 3 2 Recycler 1 | . 1 . Watcher 1 | . 1 . Swarmer 3 | . . 3 Grunt 4 | . 4 . Assembled 3 | . . 3 Best Kill Streak 3 | . 3 3 Combat Bots Only 3 | . 2 3 Max Kills in Single Turn 2 | . 1 2 Gunslinging . | . . . Exploded 2 | . . 2 Melee . | . . . Uniques/NPCs Destroyed . | . . . Combat | -11 -10 -10 -------- Run | Scr Mat Min Damage Taken 871 | . 85 786 Core 268 | . 21 247 Absorbed by Shields . | . . . Core Remaining (%) 100 | 100 . . Volleys Fired 33 | . 23 10 Largest 2 | . 2 2 Hottest 60 | . 60 60 Shots Fired 66 | . 46 20 Gun 63 | . 46 17 Cannon . | . . . Launcher 3 | . . 3 Special . | . . . Kinetic 33 | . 23 10 Thermal . | . . . Explosive 3 | . . 3 Electromagnetic 30 | . 23 7 Robot Hit Streak 7 | . 7 7 Robot Miss Streak 4 | . 3 4 Penetration Max . | . . . Secondary Targets 3 | . 2 1 Max Gunslinging Chain 1 | . 1 1 Shots Hit Robots 35 | . 30 5 Core Hits 25 | . 13 12 Critical Hits . | . . . Critical Kills . | . . . Critical Parts Destroyed . | . . . Melee Attacks . | . . . Impact . | . . . Slashing . | . . . Piercing . | . . . Sneak Attacks . | . . . Combat Hostiles . | . . . Follow-up Attacks . | . . . Damage Inflicted 647 | . 352 295 Guns 430 | . 352 78 Cannons . | . . . Explosions 217 | . . 217 Melee . | . . . Ramming . | . . . Kinetic 160 | . 126 34 Thermal . | . . . Explosive 217 | . . 217 Electromagnetic 270 | . 226 44 Impact . | . . . Slashing . | . . . Piercing . | . . . Highest Corruption . | . . . Average Corruption . | . . . Corruption Purged . | . . . Overload Shots . | . . . Overflow Damage . | . . . Projectiles . | . . . Explosions . | . . . Melee . | . . . Knockbacks . | . . . Impact . | . . . Kinetic . | . . . Secondary . | . . . Self-Inflicted Damage 4 | . . 4 Shots 1 | . . 1 Rammed . | . . . Targets Rammed . | . . . Kicked . | . . . Crushed . | . . . Highest Temperature 72 | . 72 72 Average Temperature 29 | . 29 31 Received Heat Transfer 225 | . 45 180 Siege Activations . | . . . Robots Corrupted . | . . . Combat Hostiles . | . . . Parts Fried 1 | . . 1 Impact Corruptions . | . . . Robots Melted . | . . . Combat Hostiles . | . . . Parts Melted . | . . . Heat Transferred . | . . . Parts Sabotaged . | . . . Parts Stolen . | . . . Parts Stripped . | . . . Power Chain Reactions . | . . . Missiles Intercepted . | . . . Alert | -11 -10 -10 ------- Run | Scr Mat Min Peak Influence 151 | . 151 143 Initial 58 | . . 58 Average 71 | . 66 126 Maximum Alert Level . | . . . Low Security (%) 100 | 100 100 100 Level 1 . | . . . Level 2 . | . . . Level 3 . | . . . Level 4 . | . . . Level 5 . | . . . High Security . | . . . Max Security . | . . . Squads Dispatched . | . . . Investigation . | . . . Extermination . | . . . Reinforcement . | . . . Assault . | . . . Garrison . | . . . Intercept . | . . . Construction Impeded . | . . . Haulers Reinforced . | . . . Stealth | -11 -10 -10 --------- Run | Scr Mat Min Distress Signals 1 | . 1 . Communications Jammed . | . . . Distress Signals . | . . . Times Spotted 21 | . 7 14 Peak Tracking Total 7 | . 4 7 Tactical Retreats . | . . . Traps | -11 -10 -10 ------- Run | Scr Mat Min Traps Triggered . | . . . Indirectly . | . . . Trap Hack Attempts . | . . . Triggered . | . . . Disarmed . | . . . Reprogrammed . | . . . Reused . | . . . Traps Extracted . | . . . Installed . | . . . Triggered . | . . . Machines | -11 -10 -10 ---------- Run | Scr Mat Min Machines Disabled . | . . . Max in Single Turn . | . . . Machines Sabotaged . | . . . Garrisons Compromised . | . . . Overloaded Fab Kills . | . . . Fab Network Shutdowns . | . . . Hacking | -11 -10 -10 --------- Run | Scr Mat Min Machines Accessed 3 | . 3 . Terminals 1 | . 1 . Fabricators . | . . . Repair Stations 1 | . 1 . Recycling Units 1 | . 1 . Scanalyzers . | . . . Garrison Access . | . . . Total Hacks 6 | . 6 . Successful 4 | . 4 . Failed 2 | . 2 . Catastrophic . | . . . Database Lockouts . | . . . Manual . | . . . Terminals 1 | . 1 . Fabricators . | . . . Repair Stations 4 | . 4 . Recycling Units 1 | . 1 . Scanalyzers . | . . . Garrison Access . | . . . Terminal Hacks 1 | . 1 . Emergency Access Points 1 | . 1 . Fabricator Hacks . | . . . Repair Station Hacks 2 | . 2 . Scan Component 1 | . 1 . Repair 1 | . 1 . Recycling Unit Hacks 1 | . 1 . Report Inventory 1 | . 1 . Scanalyzer . | . . . Garrison Access Hacks . | . . . Unauthorized Hacks . | . . . Terminals . | . . . Fabricators . | . . . Repair Stations . | . . . Recycling Units . | . . . Scanalyzers . | . . . Garrison Access . | . . . Data Cores Recovered . | . . . Used . | . . . Hacking Detections 3 | . 3 . Full Trace Events 1 | . 1 . Feedback Events . | . . . Feedback Blocked . | . . . Robot Schematics Acquired . | . . . Robots Built . | . . . Matter . | . . . Time . | . . . Total Robot Build Rating . | . . . Part Schematics Acquired . | . . . Parts Built . | . . . Matter . | . . . Time . | . . . Total Part Build Rating . | . . . Parts Repaired 1 | . 1 . Time 26 | . 26 . Parts Recycled . | . . . Recycled Matter . | . . . Retrieved Matter . | . . . Retrieved Components . | . . . Parts Scanalyzed . | . . . Part Schematics Acquired . | . . . Parts Damaged . | . . . Bothacking | -11 -10 -10 ------------ Run | Scr Mat Min Used RIF Installer . | . . . Robots Hacked . | . . . Non-combat . | . . . Combat . | . . . Robot Hacks Applied . | . . . Relay Couplers Released . | . . . Robots Rewired . | . . . Allies Hacked . | . . . Hacks Repelled . | . . . Allies | -11 -10 -10 -------- Run | Scr Mat Min Total Allies . | . . . Largest Group . | . . . Highest-Rated Group . | . . . Highest-Rated Ally . | . . . Total Orders . | . . . Ally Attacks . | . . . Total Damage . | . . . Kills . | . . . Allies Corrupted . | . . . Allies Melted . | . . . Intel | -11 -10 -10 ------- Run | Scr Mat Min Robot Analysis Total . | . . . Derelict Logs Recovered . | . . . Drone Launches . | . . . Drone Recoveries . | . . . Exploration | -11 -10 -10 ------------- Run | Scr Mat Min Turns Passed 548 | 68 358 122 Spaces Moved 320 | 48 204 68 Core 5 | 5 . . Treads . | . . . Legs 315 | 43 204 68 Wheels . | . . . Hover . | . . . Flight . | . . . Fastest Speed 50 | 50 120 120 Average Speed 119 | 115 120 120 Slowest Speed 150 | 150 120 120 Overloaded Moves . | . . . Propulsion Burnouts . | . . . Robots Hopped . | . . . Cave-ins Triggered . | . . . Exploration Rate (%) 20 | 4 34 24 Regions Visited 2 Branch Regions 1 Pre-discovered Areas . | . . . Known Exits Taken . | . . . Unknown Exits Taken 2 | 1 1 . Scrap Searched 1 | . . 1 Spaces Dug . | . . . Terrain Destroyed 29 | . . 29 Melee . | . . . Projectile . | . . . AOE 29 | . . 29 Terrain Rammed . | . . . Walls Destroyed . | . . . Machines Disabled . | . . . Actions | -11 -10 -10 --------- Run | Scr Mat Min Total 424 | 57 277 90 Wait 38 | . 38 . Move 318 | 47 203 68 Hop . | . . . Pick Up 11 | 4 5 2 Fast Attach 10 | 6 2 2 Attach 6 | . 2 4 Detach 1 | . . 1 Swap . | . . . Drop 7 | . 4 3 Fire 33 | . 23 10 Melee . | . . . Ram . | . . . Kick . | . . . Crush . | . . . Escape Stasis . | . . . Rewire . | . . . Trap . | . . . Miscellaneous . | . . . Route ------- -11/Scrapyard -10/Materials -10/Mines History --------- Turn | Location | Event 8 | -11/Scrapyard | Discovered new exit (range 16) 69 | -11/Scrapyard | Entered Materials 218 | -10/Materials | Discovered new exit (range 8) 311 | -10/Materials | Build established: Mutant 405 | -10/Materials | Repaired EM Pulse Gun 427 | -10/Materials | Entered Mines 499 | -10/Mines | Assembled infested the area 534 | -10/Mines | Core integrity fell below 50% 536 | -10/Mines | Core integrity fell below 20% 549 | -10/Mines | Destroyed by D-53 Grenadier with Mini Grenade Launcher Last Messages --------------- 00499_ ALERT: Infestation in the mines, dispatching Demolisher response squad. 00506_ Dropped Assault Rifle. 00507_ Acquired Assault Rifle. 00511_ as-33738 destroyed. 00511_ as-62997 destroyed. 00515_ The unstable cave ceiling collapses. 00515_ Grenade Launcher destroyed. 00522_ Assault Rifle severed. 00524_ U-05 Engineer lays Concrete. 00524_ U-05 Engineer destroyed. 00525_ as-44372 destroyed. 00529_ Aluminum Leg destroyed. 00533_ C-30 ARC bursts open, deploying its payload. 00533_ D-53 Grenadier unfolds itself. 00533_ as-22528 destroyed. 00533_ Lgt. Ion Engine destroyed. 00533_ as-07984 destroyed. 00535_ Lgt. Assault Rifle destroyed. 00539_ as-16078 destroyed. 00542_ The unstable cave ceiling collapses. Map ----- +----------------------------------------------------+ | ????????????????????????????????????????????????? | | ????????????????????????????????????????????????? | | ????????????????????????????????????????????????? | | ????????????????????????????????????????????????? | | ????????????????????????????????????????????????? | | ????????????????????????????????????????????????? | | ????????????????????????????????????????????????? | | ?????????????????????????????????#??????????????? | | ????????????????????????????????## ?????????????? | | ???????????????????????????????## ????????????? | | ??????????????????????????????? #???????????? | | ??????????????????????????????? ##????????## | | ????????????????????????????????? #???????# | | ??????????????????????????????????# #??????# | | ???????????????????????????????????# ###???# | | ????????????????????????????????????# ##### | | ?????????????????????????????????#### ## | | ?????????????????????????????????# | | ?????????????????????????????????# #### | | ?????????????????????????????????# ##### #??# | | ?????????????????????????????????# #???# ##??# | | ????????????????????????????????## #???# #???# | | ???????????????????????????????## ##### #???# | | ????????????????????????????#### ]% #???## | | ????????????????############# [#????? | | ????????? @ d% ####????? | | ????????? ## #??????? | | ???????????# ################### #??????? | | ???????????????????????????????# #????? | | ???????????????????????????????## #????? | | ????????????????????????????????# #????? | | ?????????????????????????????##### ##???? | | ????????????????????????????## ???? | | ???????????????????????????## ### | | ???????????????????????????# # | | ???????????????????????????# =%! | | ???????????????????????????## |=! | | ????????????????????????????## [ | | ?????????????????????????????## ## # | | ??????????????????????????????# #### # | | ??????????????????????????????#### ##??## ## | | ?????????????????????????????????###?????### ##? | | ???????????????????????????????????????????####?? | | ????????????????????????????????????????????????? | | | | | | | | | | | | | +----------------------------------------------------+ Best States ------------- Heat Dissipation 25 Energy Generation 10 Energy Capacity 125 Matter Stores 300 Matter Capacity 300 Sight Range 16 Robot Scan Range 10 Terrain Scan Density 10 Evasion (%) 40 Item Schematics ----------------- None Robot Schematics ------------------ None Fabricated ------------ Nothing Alien Tech Used ----------------- None Achievements -------------- None Challenges ------------ None Game ------ Seed MiniAutogunArmor Manual? 0 Play Time 00:14:23 Cumulative 8.6 hours Start 2020.11.14 @ 01:04:36 End 2020.11.14 @ 01:18:50 Sessions 1 Manual Loads 0 Difficulty Rogue Special Mode None Game No. 9 Rogue 9 Adventurer 0 Explorer 0 Win Type - Total 0 Types 0/0/0/0/0/0/0/0/0 Lore% 6 Gallery% 13 Achievement% 15 Wizard Run 0 Options --------- ASCII 1 Keyboard 1 Movement Numpad Keybinds 0 Fullscreen 2 Font 12/Terminus Map View 83x54 Tactical HUD 1 Map Filters NONE Filters NONE Steam 1 RUN: 41c582da-10cf-4add-8d70-9898b71bd68b